bitfinex/quotes_BTCUSD_20240607
["timestamp","ask_amount","ask_price","bid_price","bid_amount"]
[1717767164327,0.000305,71353.0,71351.0,0.2369]
[1717767164530,0.000305,71353.0,71352.0,0.14542264]
[1717767164737,0.000305,71354.0,71352.0,0.14542264]
[1717767164938,0.000305,71352.0,71351.0,0.2379]
[1717767165064,0.000305,71352.0,71351.0,0.38332427]
[1717767165467,0.000305,71352.0,71351.0,0.14642427]
[1717767165669,0.07222824,71353.0,71351.0,0.14642427]
[1717767165887,0.140451,71354.0,71351.0,0.001]
[1717767165888,0.140146,71354.0,71351.0,0.001]
[1717767166110,0.000305,71353.0,71352.0,0.14542631]
[1717767167460,0.140453,71353.0,71352.0,0.14542631]
[1717767167622,0.140453,71353.0,71352.0,0.14842631]
[1717767167623,0.140148,71353.0,71352.0,0.14842631]
[1717767167823,0.140148,71353.0,71352.0,0.003]
[1717767168005,0.140453,71353.0,71349.0,0.1535]
[1717767168209,0.000305,71352.0,71350.0,0.14542782]
[1717767168435,0.000305,71350.0,71349.0,0.1535]
[1717767168605,0.000305,71350.0,71349.0,0.29892486]
[1717767168952,0.140148,71353.0,71349.0,0.29892486]
[1717767169161,0.140148,71353.0,71350.0,0.14542486]
[1717767169405,0.000305,71351.0,71349.0,0.1535]
[1717767169609,0.141453,71353.0,71350.0,0.14542719]
[1717767169853,0.140453,71353.0,71349.0,0.1535]
[1717767170056,0.21268524,71351.0,71350.0,0.14542634]
[1717767170228,0.140457,71351.0,71350.0,0.14542634]
[1717767170588,0.140457,71351.0,71348.0,0.1505]
[1717767170589,0.140156,71349.0,71348.0,0.1505]
[1717767170792,0.400305,71348.0,71347.0,0.0793]
[1717767171015,0.14047,71344.0,71343.0,0.1553]
[1717767171214,0.14047,71344.0,71343.0,0.30074169]
[1717767171415,0.14047,71344.0,71343.0,0.14544169]
[1717767171714,0.14047,71344.0,71336.0,0.2333]
[1717767171715,0.140179,71337.0,71336.0,0.2333]
[1717767171919,0.140484,71337.0,71336.0,0.37874879]
[1717767172300,0.140179,71337.0,71336.0,0.37874879]
[1717767173126,0.140484,71337.0,71336.0,0.37874879]
[1717767173337,0.140179,71337.0,71336.0,0.37874879]
[1717767173555,0.140179,71337.0,71336.0,0.38174879]
[1717767173799,0.140179,71337.0,71336.0,0.2363]
[1717767173971,0.140179,71337.0,71336.0,0.37874929]
[1717767174482,0.140484,71337.0,71336.0,0.38174929]
[1717767174618,0.140484,71337.0,71336.0,0.37874929]
[1717767175690,0.140484,71337.0,71336.0,0.2333]
[1717767175904,0.140484,71337.0,71336.0,0.37875063]
[1717767176649,0.140179,71337.0,71336.0,0.37875063]
[1717767176966,0.140179,71337.0,71336.0,0.38175063]
[1717767176967,0.140484,71337.0,71336.0,0.38175063]
[1717767177170,0.140484,71337.0,71336.0,0.37875063]
[1717767177571,0.140484,71337.0,71336.0,0.38075063]
[1717767177777,0.140484,71337.0,71336.0,0.37875063]
[1717767178079,0.140484,71337.0,71336.0,0.37975063]
[1717767178509,0.140484,71337.0,71336.0,0.14645063]
[1717767179245,0.140484,71337.0,71336.0,0.001]
[1717767179669,0.240484,71337.0,71336.0,0.001]
[1717767180107,0.1405,71329.0,71328.0,0.1636]
[1717767180346,0.140195,71329.0,71328.0,0.30906657]
[1717767180580,0.1405,71329.0,71328.0,0.30906657]
[1717767181281,0.140195,71329.0,71328.0,0.30906657]
[1717767181497,0.1405,71329.0,71328.0,0.31206657]
[1717767182159,0.1405,71329.0,71328.0,0.14846657]
[1717767182400,0.140195,71329.0,71328.0,0.14846657]
[1717767182613,0.000305,71334.0,71329.0,0.1592]
[1717767182849,0.140193,71330.0,71329.0,0.1592]
[1717767183304,0.140193,71330.0,71329.0,0.30466903]
[1717767184005,0.140187,71333.0,71329.0,0.30466903]
[1717767184206,0.1,71337.0,71329.0,0.30466903]
[1717767184207,0.1,71337.0,71332.0,0.07222824]
[1717767184417,0.1,71337.0,71334.0,0.019695]
[1717767184632,0.1,71337.0,71333.0,0.51988796]
[1717767184633,0.1,71337.0,71335.0,0.28988796]
[1717767184835,0.1,71337.0,71336.0,0.31186903]
[1717767185073,0.1,71337.0,71336.0,0.45628796]
[1717767185272,0.1,71337.0,71336.0,0.55558296]
[1717767185478,0.1,71337.0,71336.0,0.71876396]
[1717767186444,0.1,71337.0,71336.0,0.72176396]
[1717767186648,0.1,71337.0,71336.0,0.71876396]
[1717767187186,0.1,71337.0,71336.0,0.71989271]
[1717767187598,0.1,71337.0,71336.0,0.73958771]
[1717767188406,0.3957,71352.0,71346.0,0.1622]
[1717767188643,0.000305,71361.0,71347.0,0.36828796]
[1717767188851,0.000305,71357.0,71348.0,0.14546903]
[1717767189229,1.36446,71362.0,71349.0,0.14546903]
[1717767189230,0.000305,71359.0,71349.0,0.14546903]
[1717767189442,0.000305,71357.0,71350.0,0.14546903]
[1717767189660,1.36446,71362.0,71351.0,0.14546903]
[1717767189661,0.140142,71356.0,71351.0,0.14546903]
[1717767190126,0.140142,71356.0,71352.0,0.14516518]
[1717767190336,0.140142,71356.0,71348.0,0.14441893]
[1717767191114,0.140447,71356.0,71348.0,0.14441893]
[1717767191318,0.000305,71353.0,71348.0,0.14441893]
[1717767191765,0.000305,71349.0,71348.0,0.002]
[1717767192049,0.000305,71349.0,71346.0,0.1622]
[1717767192050,0.140154,71350.0,71346.0,0.1622]
[1717767192292,0.140154,71350.0,71348.0,0.002]
[1717767192501,0.140453,71353.0,71348.0,0.002]
[1717767192987,0.000305,71350.0,71346.0,0.1622]
[1717767193226,0.000305,71349.0,71348.0,0.002]
[1717767193450,0.000305,71349.0,71346.0,0.1622]
[1717767193714,0.140148,71353.0,71346.0,0.1622]
[1717767193932,0.000305,71361.0,71347.0,0.16411393]
[1717767194152,0.000305,71361.0,71349.0,0.019695]
[1717767194336,0.000305,71361.0,71349.0,0.16411393]
[1717767194467,0.60405907,71362.0,71349.0,0.15441893]
[1717767194669,0.14014,71357.0,71349.0,0.14441893]
[1717767194895,0.140461,71349.0,71348.0,0.002]
[1717767195106,0.140149,71353.0,71348.0,0.002]
[1717767195327,0.140454,71353.0,71348.0,0.002]
[1717767195547,0.140149,71353.0,71348.0,0.002]
[1717767195779,0.140151,71352.0,71348.0,0.002]
[1717767196029,0.140151,71352.0,71346.0,0.1622]
[1717767196853,0.140151,71352.0,71349.0,0.002]
[1717767197206,0.140145,71355.0,71349.0,0.002]
[1717767197822,0.000305,71354.0,71349.0,0.002]
[1717767198098,0.40086,71357.0,71349.0,0.002]
[1717767198099,0.000305,71351.0,71349.0,0.002]
[1717767198323,0.000305,71350.0,71340.0,0.02080824]
[1717767198539,0.19,71353.0,71339.0,0.0768]
[1717767198540,0.000305,71345.0,71339.0,0.0768]
[1717767198748,0.19,71353.0,71346.0,0.002]
[1717767198749,0.000305,71349.0,71346.0,0.002]
[1717767199112,0.140462,71349.0,71339.0,0.0768]
[1717767199319,0.140157,71349.0,71340.0,0.00919796]
[1717767199945,0.40086,71357.0,71341.0,0.14441893]
[1717767200142,0.00086,71357.0,71356.0,0.019695]
[1717767200486,0.00086,71357.0,71356.0,0.31941393]
[1717767200601,0.00086,71357.0,71356.0,0.46483041]
[1717767200800,0.00086,71357.0,71356.0,0.61138538]
[1717767201099,0.00086,71357.0,71356.0,0.91158538]
[1717767201291,0.00086,71357.0,71356.0,0.71158538]
[1717767201550,0.00086,71357.0,71356.0,0.66889038]
[1717767201878,0.00086,71357.0,71356.0,0.68858538]
[1717767202080,0.00086,71357.0,71356.0,0.66889038]
[1717767202488,0.00086,71357.0,71356.0,0.69058538]
[1717767202906,0.00086,71357.0,71356.0,0.67089038]
[1717767203243,0.00086,71357.0,71356.0,0.68858538]
[1717767203445,0.00086,71357.0,71356.0,0.71458538]
[1717767204087,0.00086,71357.0,71356.0,0.71358538]
[1717767204294,0.00086,71357.0,71356.0,0.71558538]
[1717767204822,0.00086,71357.0,71356.0,0.71158538]
[1717767205027,0.00086,71357.0,71356.0,0.5661689]
[1717767205229,0.00086,71357.0,71356.0,0.7135576]
[1717767205604,0.00086,71357.0,71356.0,0.7115576]
[1717767206144,0.00086,71357.0,71356.0,0.6708626]
[1717767206371,0.00086,71357.0,71356.0,0.6688626]
[1717767206600,0.001165,71357.0,71356.0,0.15280167]
[1717767206812,0.001165,71357.0,71356.0,0.15480167]
[1717767207012,0.001165,71357.0,71356.0,0.15380167]
[1717767207425,0.00086,71357.0,71356.0,0.00941297]
[1717767207629,0.00086,71357.0,71356.0,0.1548166]
[1717767207834,0.001165,71357.0,71356.0,0.1538166]
[1717767208072,0.00086,71357.0,71356.0,0.1538166]
[1717767208281,0.00086,71357.0,71356.0,0.1548166]
[1717767208487,0.00086,71357.0,71356.0,0.1528166]
[1717767208933,0.00086,71357.0,71356.0,0.1548166]
[1717767209155,0.00086,71357.0,71356.0,0.1528166]
[1717767209536,0.00086,71357.0,71356.0,0.1548166]
[1717767209791,0.001165,71357.0,71356.0,0.1548166]
[1717767211143,0.001165,71357.0,71356.0,0.15451275]
[1717767211144,0.368705,71357.0,71356.0,0.15451275]
[1717767211339,0.368705,71357.0,71356.0,0.003]
[1717767211340,0.68606353,71357.0,71356.0,0.003]
[1717767211758,0.66606353,71357.0,71356.0,0.003]
[1717767211983,0.68606353,71357.0,71356.0,0.003]
[1717767212399,0.68606353,71357.0,71356.0,0.001]
[1717767212829,0.68606353,71357.0,71356.0,0.002]
[1717767213190,0.68606353,71357.0,71356.0,0.003]
[1717767213390,0.96634353,71357.0,71356.0,0.003]
[1717767213801,0.000305,71341.0,71337.0,0.000946]
[1717767214118,0.000305,71341.0,71338.0,0.14544577]
[1717767214318,0.140171,71342.0,71339.0,0.14544577]
[1717767214518,0.140171,71342.0,71340.0,0.14544577]
[1717767214718,0.140171,71342.0,71337.0,0.000946]
[1717767215070,0.140171,71342.0,71338.0,0.14544598]
[1717767215276,0.140171,71342.0,71339.0,0.14544598]
[1717767215514,0.140469,71345.0,71340.0,0.14544598]
[1717767215718,0.140168,71343.0,71341.0,0.14544598]
[1717767215927,0.140168,71343.0,71342.0,0.14544598]
[1717767216114,0.140473,71343.0,71342.0,0.14544598]
[1717767218025,0.140168,71343.0,71342.0,0.14544598]
[1717767219819,0.140162,71346.0,71342.0,0.29814598]
[1717767220022,0.140162,71346.0,71343.0,0.14544598]
[1717767220226,0.140467,71346.0,71344.0,0.14544598]
[1717767220442,0.140162,71346.0,71345.0,0.14544598]
[1717767220721,0.140467,71346.0,71345.0,0.1518827]
[1717767220931,0.140162,71346.0,71345.0,0.1518827]
[1717767222069,0.140156,71349.0,71345.0,0.1518827]
[1717767222282,0.001,71346.0,71345.0,0.1518827]
[1717767222503,0.001305,71346.0,71345.0,0.15187543]
[1717767222722,0.000305,71346.0,71345.0,0.15187543]
[1717767223162,0.004305,71346.0,71345.0,0.15187543]
[1717767223375,0.000305,71346.0,71345.0,0.15187543]
[1717767223805,0.004305,71346.0,71345.0,0.15387543]
[1717767224019,0.144467,71346.0,71345.0,0.15387543]
[1717767224190,0.221567,71346.0,71345.0,0.00843672]
[1717767224388,0.221567,71346.0,71345.0,0.002]
[1717767224950,0.221567,71346.0,71337.0,0.000946]
[1717767224951,0.081405,71346.0,71337.0,0.000946]
[1717767225148,0.000305,71338.0,71337.0,0.000946]
[1717767225374,0.000305,71338.0,71337.0,0.14639149]
[1717767225574,0.000305,71339.0,71337.0,0.14639149]
[1717767225780,0.000305,71339.0,71338.0,0.14544549]
[1717767228316,0.000305,71338.0,71337.0,0.14639543]
[1717767228518,0.140482,71338.0,71337.0,0.14639001]
[1717767229295,0.140482,71338.0,71337.0,0.000946]
[1717767229932,0.140482,71338.0,71337.0,0.002946]
[1717767230334,0.140482,71338.0,71337.0,0.000946]
[1717767230858,0.140482,71338.0,71337.0,0.001946]
[1717767231269,0.140482,71338.0,71337.0,0.000946]
[1717767231658,0.140482,71338.0,71337.0,0.001946]
[1717767232113,0.140482,71338.0,71337.0,0.003946]
[1717767235663,0.140177,71338.0,71337.0,0.003946]
[1717767235893,0.000305,71344.0,71337.0,0.003946]
[1717767236098,0.140175,71340.0,71337.0,0.003946]
[1717767236301,0.140176,71339.0,71337.0,0.003946]
[1717767236679,0.140176,71339.0,71337.0,0.001946]
[1717767237042,0.140176,71339.0,71338.0,0.14545437]
[1717767237251,0.140481,71339.0,71338.0,0.14545437]
[1717767239155,0.140481,71339.0,71338.0,0.14645437]
[1717767239156,0.420832,71339.0,71338.0,0.14645437]
[1717767240329,0.140481,71339.0,71338.0,0.14645437]
[1717767240442,0.140481,71339.0,71338.0,0.14845437]
[1717767242583,0.420832,71339.0,71338.0,0.14845437]
[1717767245270,0.280318,71348.0,71338.0,0.2928733]
[1717767245271,0.140475,71342.0,71338.0,0.2928733]
[1717767245472,0.44136663,71350.0,71339.0,0.5179733]
[1717767245473,0.140172,71341.0,71339.0,0.5179733]
[1717767245678,0.140172,71341.0,71340.0,0.14545437]
[1717767246125,0.41691889,71350.0,71341.0,0.019695]
[1717767246126,0.01661389,71350.0,71341.0,0.019695]
[1717767246356,0.3957,71353.0,71345.0,0.019695]
[1717767246530,0.00086,71357.0,71353.0,0.019695]
[1717767246753,0.00086,71357.0,71355.0,0.019695]
[1717767246955,0.00086,71357.0,71355.0,0.32491891]
[1717767247172,0.00086,71357.0,71355.0,0.61048798]
[1717767247383,0.00086,71357.0,71355.0,0.63348798]
[1717767248081,0.00086,71357.0,71355.0,0.63548798]
[1717767248317,0.00086,71357.0,71355.0,0.71568798]
[1717767248693,0.00086,71357.0,71355.0,0.91568798]
[1717767249620,0.00086,71357.0,71355.0,0.71368798]
[1717767249761,0.00086,71357.0,71355.0,0.710083]
[1717767250601,0.00086,71357.0,71355.0,0.712083]
[1717767250812,0.00086,71357.0,71355.0,0.710083]
[1717767251065,0.00086,71357.0,71355.0,0.690388]
[1717767251252,0.00086,71357.0,71355.0,0.529244]
[1717767251420,0.00086,71357.0,71355.0,0.56973983]
[1717767252069,0.00086,71357.0,71355.0,0.689083]
[1717767252278,0.00086,71357.0,71355.0,0.669388]
[1717767252388,0.00086,71357.0,71355.0,0.689083]
[1717767253011,0.00086,71357.0,71355.0,0.687083]
[1717767253208,0.00086,71357.0,71355.0,0.685083]
[1717767253629,0.00086,71357.0,71355.0,0.689083]
[1717767253834,0.00086,71357.0,71355.0,0.687083]
[1717767254739,0.00086,71357.0,71355.0,0.669388]
[1717767255254,0.00086,71357.0,71355.0,0.689083]
[1717767256434,0.00086,71357.0,71355.0,0.66935567]
[1717767256636,0.00086,71357.0,71355.0,0.31349274]
[1717767256863,0.00086,71357.0,71355.0,0.47760667]
[1717767257061,0.00086,71357.0,71355.0,0.61775067]
[1717767257630,0.00086,71357.0,71355.0,0.61375067]
[1717767258055,0.00086,71357.0,71355.0,0.61575067]
[1717767258267,0.00086,71357.0,71355.0,0.61375067]
[1717767258624,0.00086,71357.0,71355.0,0.61575067]
[1717767258740,0.00086,71357.0,71355.0,0.59605567]
[1717767258946,0.00086,71357.0,71355.0,0.14739274]
[1717767259368,0.001165,71356.0,71355.0,0.14739274]
[1717767259855,0.001165,71356.0,71355.0,0.14939274]
[1717767260205,0.001165,71356.0,71355.0,0.14539274]
[1717767260403,0.001165,71356.0,71344.0,0.140165]
[1717767260404,0.000305,71352.0,71344.0,0.140165]
[1717767260585,0.00086,71356.0,71344.0,0.140165]
[1717767260586,0.000305,71351.0,71345.0,0.28983055]
[1717767260810,0.000305,71351.0,71346.0,0.14541162]
[1717767261014,0.000305,71351.0,71347.0,0.28983055]
[1717767261237,0.140461,71349.0,71348.0,0.14541162]
[1717767261432,0.29018924,71349.0,71348.0,0.14541162]
[1717767261635,0.000305,71339.0,71332.0,0.02079171]
[1717767261835,0.000305,71340.0,71338.0,0.14543962]
[1717767262096,0.140169,71342.0,71331.0,0.1558]
[1717767262097,0.000305,71339.0,71331.0,0.1558]
[1717767262300,0.000305,71340.0,71338.0,0.14544207]
[1717767262460,0.000305,71339.0,71328.0,0.140196]
[1717767262618,0.140169,71342.0,71328.0,0.140196]
[1717767262619,0.000305,71338.0,71328.0,0.140196]
[1717767263026,0.000305,71341.0,71337.0,0.14638806]
[1717767263231,0.140169,71342.0,71338.0,0.14544206]
[1717767263232,0.140474,71342.0,71338.0,0.14544206]
[1717767263487,0.000305,71340.0,71339.0,0.14544206]
[1717767263784,0.000305,71339.0,71338.0,0.14544154]
[1717767265261,0.14048,71339.0,71338.0,0.14544154]
[1717767265471,0.140482,71338.0,71337.0,0.000946]
[1717767265676,0.369682,71338.0,71337.0,0.000946]
[1717767265889,0.93226524,71338.0,71337.0,0.000946]
[1717767267280,1.21262024,71338.0,71337.0,0.000946]
[1717767267641,1.35703917,71338.0,71337.0,0.000946]
[1717767267833,1.56603917,71338.0,71337.0,0.001946]
[1717767268043,1.66603917,71338.0,71337.0,0.001946]
[1717767268302,1.80215704,71338.0,71337.0,0.000946]
[1717767268448,1.91115704,71338.0,71337.0,0.000946]
[1717767268662,1.72115704,71338.0,71337.0,0.001946]
[1717767268855,1.92115704,71338.0,71337.0,0.001946]
[1717767270180,1.91115704,71338.0,71337.0,0.000946]
[1717767270388,2.19151204,71338.0,71337.0,0.000946]
[1717767270564,2.19651204,71338.0,71337.0,0.001946]
[1717767271158,2.20651204,71338.0,71337.0,0.001946]
[1717767271512,0.000305,71310.0,71309.0,0.000946]
[1717767271690,0.000305,71310.0,71309.0,0.14642806]
[1717767272099,0.140537,71310.0,71309.0,0.14642806]
[1717767272318,0.140232,71310.0,71309.0,0.14642806]
[1717767272717,0.140537,71310.0,71309.0,0.14642806]
[1717767273334,0.140232,71310.0,71309.0,0.14642806]
[1717767274279,0.140537,71310.0,71309.0,0.14842806]
[1717767274644,0.140537,71310.0,71309.0,0.14642806]
[1717767275064,0.140537,71310.0,71309.0,0.14742806]
[1717767275263,0.650502,71310.0,71309.0,0.14742806]
[1717767275496,0.650502,71310.0,71309.0,0.14642806]
[1717767275667,0.670502,71310.0,71309.0,0.14642806]
[1717767276122,1.62143613,71310.0,71309.0,0.14742806]
[1717767276511,2.00190113,71310.0,71309.0,0.10203552]
[1717767276943,2.00190113,71310.0,71309.0,0.001]
[1717767277381,0.652015,71291.0,71290.0,0.009493]
[1717767277583,0.652015,71291.0,71290.0,0.004493]
[1717767279044,0.371475,71291.0,71290.0,0.004493]
[1717767279666,0.222175,71291.0,71290.0,0.004493]
[1717767279829,0.140575,71291.0,71290.0,0.004493]
[1717767280732,0.150575,71291.0,71290.0,0.004493]
[1717767280944,0.441115,71291.0,71290.0,0.004493]
[1717767281151,0.58923287,71291.0,71290.0,0.004493]
[1717767281370,0.58623287,71291.0,71290.0,0.004493]
[1717767281567,0.59523287,71291.0,71290.0,0.004493]
[1717767281771,0.90069712,71291.0,71290.0,0.004493]
[1717767282360,0.99999818,71291.0,71290.0,0.004493]
[1717767282532,1.050865,71290.0,71289.0,0.00425599]
[1717767282769,1.39528393,71290.0,71289.0,0.00425599]
[1717767283515,1.29528393,71290.0,71289.0,0.00425599]
[1717767284715,1.31028393,71290.0,71289.0,0.00425599]
[1717767285128,0.765321,71290.0,71289.0,0.00425599]
[1717767285334,1.065865,71290.0,71289.0,0.00425599]
[1717767285544,1.21028393,71290.0,71289.0,0.00425599]
[1717767285836,1.31028393,71290.0,71289.0,0.00425599]
[1717767286793,0.76043993,71290.0,71289.0,0.00425599]
[1717767286966,0.636021,71290.0,71289.0,0.00425599]
[1717767287170,0.75713915,71290.0,71289.0,0.00425599]
[1717767287584,1.03768315,71290.0,71289.0,0.00425599]
[1717767288206,1.48210208,71290.0,71289.0,0.00425599]
[1717767288426,1.63140208,71290.0,71289.0,0.00425599]
[1717767288635,2.01194608,71290.0,71289.0,0.00425599]
[1717767288875,2.01194608,71290.0,71279.0,0.00474899]
[1717767288876,1.944062,71280.0,71279.0,0.00474899]
[1717767289081,2.16070917,71280.0,71279.0,0.00474899]
[1717767289305,2.16070917,71280.0,71272.0,0.009493]
[1717767289306,1.402373,71278.0,71277.0,0.00355299]
[1717767289516,1.77909193,71278.0,71277.0,0.00355299]
[1717767289737,1.151232,71273.0,71272.0,0.009493]
[1717767289939,1.5407688,71273.0,71272.0,0.009493]
[1717767290284,1.8213798,71273.0,71272.0,0.009493]
[1717767290805,1.6213798,71273.0,71272.0,0.009493]
[1717767291591,1.8213798,71273.0,71272.0,0.009493]
[1717767291706,1.9213798,71273.0,71272.0,0.009493]
[1717767291905,1.611852,71271.0,71270.0,0.001742]
[1717767292122,0.92187,71269.0,71268.0,0.002235]
[1717767292338,0.96628893,71269.0,71268.0,0.002235]
[1717767293638,0.000305,71250.0,71241.0,0.1565]
[1717767293846,0.000305,71246.0,71242.0,0.14564236]
[1717767294033,0.30069,71253.0,71243.0,0.14564236]
[1717767294273,0.059,71256.0,71242.0,0.00662135]
[1717767294274,0.140364,71243.0,71242.0,0.00662135]
[1717767294483,0.140364,71243.0,71241.0,0.1565]
[1717767294484,0.140366,71242.0,71241.0,0.1565]
[1717767294696,0.140366,71242.0,71241.0,0.30215858]
[1717767294900,0.140366,71242.0,71241.0,0.1565]
[1717767295103,0.140374,71238.0,71235.0,0.0783]
[1717767295310,0.140374,71238.0,71237.0,0.15514993]
[1717767295933,0.140374,71238.0,71237.0,0.16178298]
[1717767296347,0.1544114,71238.0,71237.0,0.16178298]
[1717767296477,0.4351604,71238.0,71237.0,0.16178298]
[1717767296674,0.4351604,71238.0,71237.0,0.15514993]
[1717767296675,0.4551604,71238.0,71237.0,0.15514993]
[1717767296876,0.4551604,71238.0,71237.0,0.01612605]
[1717767297101,0.4551604,71238.0,71237.0,0.009493]
[1717767297671,0.4351604,71238.0,71237.0,0.009493]
[1717767298066,0.4551604,71238.0,71237.0,0.01624055]
[1717767298271,0.7359094,71238.0,71237.0,0.01624055]
[1717767298607,0.7489094,71238.0,71237.0,0.009493]
[1717767299278,0.434123,71238.0,71237.0,0.009493]
[1717767299425,0.421123,71238.0,71237.0,0.009493]
[1717767299846,0.140374,71238.0,71237.0,0.009493]
[1717767300263,0.140374,71238.0,71237.0,0.39038346]
[1717767300585,0.140374,71238.0,71237.0,0.39728804]
[1717767300782,0.4,71254.0,71237.0,0.39728804]
[1717767300994,0.4,71254.0,71240.0,0.1577]
[1717767300995,0.0961387,71250.0,71240.0,0.1577]
[1717767301198,0.140363,71244.0,71241.0,0.14569046]
[1717767301401,0.0961387,71250.0,71242.0,0.14569046]
[1717767301402,0.421093,71243.0,71242.0,0.14569046]
[1717767301572,0.5824733,71243.0,71242.0,0.14569046]
[1717767301781,0.140358,71247.0,71242.0,0.14569046]
[1717767301959,0.140358,71247.0,71243.0,0.38779046]
[1717767302185,0.01727658,71250.0,71243.0,0.38779046]
[1717767302186,0.140359,71246.0,71243.0,0.38779046]
[1717767302387,0.14036,71245.0,71244.0,0.14569046]
[1717767302564,0.4,71251.0,71244.0,0.14569046]
[1717767302769,0.140358,71246.0,71245.0,0.14569046]
[1717767304129,0.01660367,71251.0,71245.0,0.29010939]
[1717767304130,0.140351,71250.0,71245.0,0.29010939]
[1717767304356,0.140351,71250.0,71248.0,0.02087399]
[1717767304564,0.3957,71258.0,71249.0,0.61567213]
[1717767304765,0.01670543,71256.0,71252.0,0.0777]
[1717767304879,0.536036,71258.0,71253.0,0.1663]
[1717767305081,0.536036,71258.0,71254.0,0.14569046]
[1717767305281,0.536036,71258.0,71253.0,0.1663]
[1717767305282,0.536036,71258.0,71255.0,0.36319261]
[1717767305486,0.536036,71258.0,71253.0,0.1663]
[1717767305487,0.536036,71258.0,71256.0,0.36319261]
[1717767305846,0.536036,71258.0,71253.0,0.1663]
[1717767305847,0.140336,71258.0,71257.0,0.36319261]
[1717767306623,0.14032,71266.0,71259.0,0.0818]
[1717767306824,0.14032,71266.0,71261.0,0.1615]
[1717767307066,0.14032,71266.0,71262.0,0.36319261]
[1717767307294,0.14032,71266.0,71263.0,0.36319261]
[1717767307472,0.14032,71266.0,71264.0,0.36319261]
[1717767307679,0.536012,71270.0,71265.0,0.36319261]
[1717767307890,0.3957,71270.0,71267.0,0.1857]
[1717767308094,0.3957,71270.0,71269.0,0.1645]
[1717767308298,0.3957,71270.0,71269.0,0.52769261]
[1717767308548,0.41263473,71270.0,71269.0,0.52769261]
[1717767308738,0.3957,71270.0,71269.0,0.52769261]
[1717767308952,0.3957,71270.0,71269.0,0.76941762]
[1717767309468,0.4007,71270.0,71269.0,0.76941762]
[1717767309714,0.004,71270.0,71269.0,0.91383655]
[1717767310708,0.004,71270.0,71269.0,0.93383655]
[1717767311322,0.004,71270.0,71269.0,0.91383655]
[1717767311502,0.004,71270.0,71269.0,0.76941762]
[1717767311700,0.004,71270.0,71269.0,0.1645]
[1717767311899,0.004,71270.0,71269.0,0.77367509]
[1717767311900,0.003,71270.0,71269.0,0.77367509]
[1717767312107,0.003,71270.0,71269.0,0.93809402]
[1717767312310,0.00177475,71270.0,71269.0,0.94009402]
[1717767312531,0.00177475,71270.0,71269.0,1.02049402]
[1717767312739,0.00177475,71270.0,71269.0,1.16080702]
[1717767312940,0.3957,71285.0,71278.0,0.2328]
[1717767312941,0.535982,71285.0,71278.0,0.2328]
[1717767313151,0.140284,71284.0,71278.0,0.2328]
[1717767313376,0.140284,71284.0,71279.0,0.36395726]
[1717767313589,0.140284,71284.0,71280.0,0.36395726]
[1717767313786,0.140287,71282.0,71281.0,0.36395726]
[1717767314526,0.55699052,71289.0,71281.0,0.36394076]
[1717767314719,0.140276,71288.0,71287.0,0.02086393]
[1717767314942,0.140276,71288.0,71287.0,0.38480469]
[1717767315143,0.140276,71288.0,71287.0,0.1455763]
[1717767315346,0.140276,71288.0,71287.0,0.38480322]
[1717767315563,0.140276,71288.0,71287.0,0.1455763]
[1717767315928,0.140276,71288.0,71287.0,0.38479849]
[1717767316131,0.143276,71288.0,71287.0,0.38479849]
[1717767316330,0.143276,71288.0,71287.0,0.36393456]
[1717767316331,0.003,71288.0,71287.0,0.36393456]
[1717767316527,0.0787,71301.0,71287.0,0.36393456]
[1717767316528,0.14026,71296.0,71288.0,0.2647]
[1717767316877,0.14026,71296.0,71289.0,0.50835349]
[1717767317153,0.14026,71296.0,71290.0,0.36393456]
[1717767317350,0.14026,71296.0,71291.0,0.36393456]
[1717767317576,0.14026,71296.0,71289.0,0.14441893]
[1717767317577,0.14026,71296.0,71292.0,0.36393456]
[1717767317786,0.3957,71300.0,71296.0,0.0833]
[1717767317926,0.140241,71306.0,71297.0,0.36393456]
[1717767318128,0.3957,71311.0,71297.0,0.36393456]
[1717767318129,0.918134,71310.0,71299.0,0.02]
[1717767318440,0.79457569,71310.0,71303.0,0.0772]
[1717767318654,0.79457569,71310.0,71304.0,0.1455763]
[1717767318842,0.01667569,71310.0,71305.0,0.3847152]
[1717767319061,0.140226,71313.0,71306.0,0.1455763]
[1717767319269,0.140229,71312.0,71306.0,0.1455763]
[1717767319634,0.140232,71311.0,71307.0,0.1455763]
[1717767319821,0.140232,71311.0,71308.0,0.1455763]
[1717767320014,0.140232,71310.0,71309.0,0.1455763]
[1717767321338,0.144232,71310.0,71309.0,0.1455763]
[1717767321545,0.02,71309.0,71295.0,0.18345341]
[1717767321721,0.07222824,71306.0,71295.0,0.18345341]
[1717767321929,0.07222824,71306.0,71296.0,0.14552573]
[1717767322129,0.07222824,71306.0,71297.0,0.14552573]
[1717767322368,0.140243,71305.0,71298.0,0.14552573]
[1717767322529,0.140243,71305.0,71299.0,0.14552573]
[1717767322745,0.140243,71305.0,71300.0,0.14552573]
[1717767323142,0.140243,71305.0,71301.0,0.14552573]
[1717767323322,0.140243,71305.0,71302.0,0.14552573]
[1717767323522,0.140243,71305.0,71303.0,0.14552573]
[1717767323845,0.140243,71305.0,71304.0,0.14552573]
[1717767324173,0.140231,71311.0,71304.0,0.14552573]
[1717767324385,0.01658303,71316.0,71303.0,0.02]
[1717767324386,0.01658303,71316.0,71305.0,0.37912573]
[1717767324580,0.7957,71320.0,71305.0,0.37912573]
[1717767324581,0.140228,71313.0,71306.0,0.14552573]
[1717767324789,0.140228,71313.0,71305.0,0.2336]
[1717767325014,0.41216131,71320.0,71307.0,0.02]
[1717767325249,0.41216131,71320.0,71310.0,0.2406]
[1717767325443,0.55237531,71320.0,71311.0,0.14441893]
[1717767325973,0.004,71313.0,71311.0,0.14441893]
[1717767326182,0.55237531,71320.0,71311.0,0.14441893]
[1717767326386,0.55237531,71320.0,71314.0,0.02]
[1717767326387,0.3957,71320.0,71314.0,0.02]
[1717767326585,0.4,71328.0,71316.0,0.1523]